[Event "*** Titled Tuesday Blitz"]
[Site "Chess.com"]
[Date "2021.02.16"]
[Round "11"]
[White "Oglob71"]
[Black "bait_or_mate"]
[Result "1-0"]
[WhiteElo "2445"]
[BlackElo "2536"]
[TimeControl "180+1"]
[EndTime "12:08:49 PST"]
[Termination "Oglob71 won by resignation"]

1. d4 {[%clk 0:02:59.9]} 1... Nf6 {[%clk 0:02:41.5]} 2. Nf3 {[%clk 0:03:00.8]}
2... d5 {[%clk 0:02:40.2]} 3. c4 {[%clk 0:03:00]} 3... e6 {[%clk 0:02:40.2]} 4.
Qc2 {[%clk 0:02:59.8]} 4... a6 {[%clk 0:02:32.2]} 5. Bg5 {[%clk 0:02:58.2]} 5...
dxc4 {[%clk 0:02:31.1]} 6. Qxc4 {[%clk 0:02:58.2]} 6... b5 {[%clk 0:02:31]} 7.
Qc2 {[%clk 0:02:58.7]} 7... Bb7 {[%clk 0:02:31.4]} 8. Nbd2 {[%clk 0:02:59]} 8...
Nbd7 {[%clk 0:02:31.7]} 9. a4 {[%clk 0:02:58.1]} 9... c5 {[%clk 0:02:29.3]} 10.
e3 {[%clk 0:02:55.4]} 10... Qb6 {[%clk 0:02:16.4]} 11. axb5 {[%clk 0:02:53.2]}
11... axb5 {[%clk 0:02:17.3]} 12. Rxa8+ {[%clk 0:02:53]} 12... Bxa8 {[%clk
0:02:18.2]} 13. dxc5 {[%clk 0:02:50.3]} 13... Bxc5 {[%clk 0:02:12.1]} 14. Qb3
{[%clk 0:02:50.2]} 14... b4 {[%clk 0:02:06.7]} 15. Bc4 {[%clk 0:02:41.5]} 15...
O-O {[%clk 0:01:59.3]} 16. O-O {[%clk 0:02:41.6]} 16... h6 {[%clk 0:01:48.2]}
17. Bf4 {[%clk 0:02:41.1]} 17... Rc8 {[%clk 0:01:46.2]} 18. Ra1 {[%clk
0:02:39.6]} 18... Bb7 {[%clk 0:01:42.9]} 19. h3 {[%clk 0:02:39.1]} 19... Be7
{[%clk 0:01:33.7]} 20. Be2 {[%clk 0:02:37.2]} 20... Nc5 {[%clk 0:01:30.8]} 21.
Qd1 {[%clk 0:02:35.5]} 21... Bd5 {[%clk 0:00:54]} 22. Nc4 {[%clk 0:02:32.7]}
22... Qb7 {[%clk 0:00:21.7]} 23. Na5 {[%clk 0:02:23.9]} 23... Qb6 {[%clk
0:00:21.8]} 24. Nd4 {[%clk 0:02:15]} 24... Nfd7 {[%clk 0:00:19.1]} 25. Nc4
{[%clk 0:02:14.5]} 25... Bxc4 {[%clk 0:00:18.7]} 26. Bxc4 {[%clk 0:02:13.4]}
26... e5 {[%clk 0:00:19.1]} 27. Nf5 {[%clk 0:01:59.6]} 27... Bf8 {[%clk
0:00:19.3]} 28. Bg3 {[%clk 0:01:57.3]} 28... g6 {[%clk 0:00:19.5]} 29. Nh4
{[%clk 0:01:54.9]} 29... Nf6 {[%clk 0:00:19.2]} 30. Bxe5 {[%clk 0:01:51.1]}
30... Nfe4 {[%clk 0:00:18.9]} 31. Qd5 {[%clk 0:01:44.4]} 31... Qb7 {[%clk
0:00:07.4]} 32. Nxg6 {[%clk 0:01:39.7]} 32... Qxd5 {[%clk 0:00:05.9]} 33. Bxd5
{[%clk 0:01:39.7]} 33... Bg7 {[%clk 0:00:05.6]} 34. Ne7+ {[%clk 0:01:38.5]} 1-0

[Event "*** Titled Tuesday Blitz"]
[Site "Chess.com"]
[Date "2021.02.16"]
[Round "11"]
[White "j2806"]
[Black "LuisFSiles"]
[Result "0-1"]
[WhiteElo "2118"]
[BlackElo "2291"]
[TimeControl "180+1"]
[EndTime "12:08:50 PST"]
[Termination "LuisFSiles won by resignation"]

1. e4 {[%clk 0:03:00.9]} 1... c5 {[%clk 0:02:57.5]} 2. Nf3 {[%clk 0:03:00.2]}
2... d6 {[%clk 0:02:56.5]} 3. d4 {[%clk 0:03:00.3]} 3... cxd4 {[%clk 0:02:56.2]}
4. Nxd4 {[%clk 0:03:01]} 4... Nf6 {[%clk 0:02:55.6]} 5. Nc3 {[%clk 0:03:01.4]}
5... g6 {[%clk 0:02:55.6]} 6. Be3 {[%clk 0:03:00.8]} 6... Bg7 {[%clk 0:02:55.3]}
7. f3 {[%clk 0:03:01]} 7... O-O {[%clk 0:02:54.8]} 8. Bc4 {[%clk 0:03:00.6]}
8... Nc6 {[%clk 0:02:54.5]} 9. Qd2 {[%clk 0:03:00.4]} 9... Bd7 {[%clk
0:02:54.6]} 10. O-O-O {[%clk 0:03:00.5]} 10... Qa5 {[%clk 0:02:54.5]} 11. Bb3
{[%clk 0:02:59.4]} 11... Rfc8 {[%clk 0:02:53.6]} 12. Kb1 {[%clk 0:02:59.4]}
12... Ne5 {[%clk 0:02:53]} 13. g4 {[%clk 0:02:56.7]} 13... Nc4 {[%clk
0:02:46.9]} 14. Bxc4 {[%clk 0:02:56.2]} 14... Rxc4 {[%clk 0:02:47.8]} 15. h4
{[%clk 0:02:55.2]} 15... Rac8 {[%clk 0:02:45.4]} 16. h5 {[%clk 0:02:51.7]} 16...
Rxc3 {[%clk 0:02:42.3]} 17. bxc3 {[%clk 0:02:51.5]} 17... Bxg4 {[%clk
0:02:42.3]} 18. fxg4 {[%clk 0:02:49.1]} 18... Nxe4 {[%clk 0:02:42.1]} 19. Qd3
{[%clk 0:02:41.2]} 19... Nxc3+ {[%clk 0:02:38.4]} 20. Kc1 {[%clk 0:02:41.3]}
20... Nxa2+ {[%clk 0:02:13.4]} 21. Kb1 {[%clk 0:02:24]} 21... Nc3+ {[%clk
0:01:53.7]} 22. Kc1 {[%clk 0:02:20.2]} 22... Na2+ {[%clk 0:01:30.9]} 23. Kb1
{[%clk 0:02:19.3]} 23... Rc3 {[%clk 0:01:31.4]} 24. Qd2 {[%clk 0:01:58.6]} 24...
Qb4+ {[%clk 0:01:24.7]} 25. Ka1 {[%clk 0:01:48]} 25... Qa3 {[%clk 0:01:10.6]}
26. Kb1 {[%clk 0:01:30.6]} 26... Nb4 {[%clk 0:01:01.9]} 27. Qf2 {[%clk
0:01:10.5]} 27... Qa2+ {[%clk 0:00:51]} 28. Kc1 {[%clk 0:01:09.4]} 28... Bxd4
{[%clk 0:00:50.7]} 29. Rxd4 {[%clk 0:00:57.5]} 29... Rxc2+ {[%clk 0:00:48.3]}
0-1

[Event "*** Titled Tuesday Blitz"]
[Site "Chess.com"]
[Date "2021.02.16"]
[Round "11"]
[White "MIJuanReyesRosa"]
[Black "Cptn2"]
[Result "1/2-1/2"]
[WhiteElo "2113"]
[BlackElo "2305"]
[TimeControl "180+1"]
[EndTime "12:08:51 PST"]
[Termination "Game drawn by repetition"]

1. d4 {[%clk 0:02:52.1]} 1... Nf6 {[%clk 0:02:59.6]} 2. Nf3 {[%clk 0:02:51.4]}
2... e6 {[%clk 0:02:58.8]} 3. c4 {[%clk 0:02:50.9]} 3... b6 {[%clk 0:02:58.2]}
4. a3 {[%clk 0:02:50.3]} 4... Bb7 {[%clk 0:02:58.1]} 5. Nc3 {[%clk 0:02:50.2]}
5... Be7 {[%clk 0:02:58.7]} 6. d5 {[%clk 0:02:50.5]} 6... O-O {[%clk 0:02:59.6]}
7. e4 {[%clk 0:02:50.7]} 7... exd5 {[%clk 0:02:59.6]} 8. exd5 {[%clk 0:02:50.3]}
8... Re8 {[%clk 0:03:00.5]} 9. Be2 {[%clk 0:02:50.2]} 9... d6 {[%clk 0:02:57.8]}
10. O-O {[%clk 0:02:49.5]} 10... Nbd7 {[%clk 0:02:58.4]} 11. Bf4 {[%clk
0:02:47.7]} 11... a5 {[%clk 0:02:57.5]} 12. h3 {[%clk 0:02:43.3]} 12... Nc5
{[%clk 0:02:57.4]} 13. Qc2 {[%clk 0:02:37.8]} 13... a4 {[%clk 0:02:53.6]} 14.
Rfe1 {[%clk 0:02:27.6]} 14... Bf8 {[%clk 0:02:41]} 15. Nd4 {[%clk 0:02:26.1]}
15... Nfe4 {[%clk 0:02:38.9]} 16. Nxe4 {[%clk 0:02:19.9]} 16... Rxe4 {[%clk
0:02:38.8]} 17. Be3 {[%clk 0:02:13]} 17... Re8 {[%clk 0:02:28.7]} 18. Nb5 {[%clk
0:02:05.6]} 18... g6 {[%clk 0:02:22.3]} 19. Bd4 {[%clk 0:02:01]} 19... Bg7
{[%clk 0:02:21.2]} 20. Bxg7 {[%clk 0:01:54.7]} 20... Kxg7 {[%clk 0:02:22.1]} 21.
Qc3+ {[%clk 0:01:53.5]} 21... Kg8 {[%clk 0:02:22.6]} 22. Bg4 {[%clk 0:01:45.3]}
22... Rxe1+ {[%clk 0:02:17.3]} 23. Rxe1 {[%clk 0:01:43.3]} 23... f5 {[%clk
0:02:18.2]} 24. Bd1 {[%clk 0:01:15.5]} 24... Qd7 {[%clk 0:02:17.7]} 25. Bc2
{[%clk 0:00:58]} 25... Ba6 {[%clk 0:02:14.7]} 26. Qf6 {[%clk 0:00:55.4]} 26...
Bxb5 {[%clk 0:02:12.2]} 27. Re7 {[%clk 0:00:52]} 27... Qxe7 {[%clk 0:02:08.3]}
28. Qxe7 {[%clk 0:00:51.8]} 28... Bd7 {[%clk 0:02:07.5]} 29. g4 {[%clk
0:00:43.6]} 29... fxg4 {[%clk 0:02:06.1]} 30. hxg4 {[%clk 0:00:40]} 30... Re8
{[%clk 0:02:06.4]} 31. Qf6 {[%clk 0:00:35.8]} 31... Rf8 {[%clk 0:02:06.2]} 32.
Qg5 {[%clk 0:00:23.1]} 32... Kg7 {[%clk 0:02:05.4]} 33. f4 {[%clk 0:00:16.5]}
33... Kh8 {[%clk 0:01:59.7]} 34. f5 {[%clk 0:00:14.4]} 34... gxf5 {[%clk
0:01:58.7]} 35. Qe7 {[%clk 0:00:13.5]} 35... Rg8 {[%clk 0:01:55.9]} 36. Qf6+
{[%clk 0:00:12.9]} 36... Rg7 {[%clk 0:01:56.5]} 37. Qf8+ {[%clk 0:00:13.3]}
37... Rg8 {[%clk 0:01:56.4]} 38. Qf6+ {[%clk 0:00:13.8]} 38... Rg7 {[%clk
0:01:57]} 39. Qf8+ {[%clk 0:00:14]} 39... Rg8 {[%clk 0:01:57.4]} 40. Qf6+ {[%clk
0:00:14]} 1/2-1/2

[Event "*** Titled Tuesday Blitz"]
[Site "Chess.com"]
[Date "2021.02.16"]
[Round "11"]
[White "KonstantinB_1983"]
[Black "kekic76"]
[Result "1-0"]
[WhiteElo "2543"]
[BlackElo "2410"]
[TimeControl "180+1"]
[EndTime "12:08:58 PST"]
[Termination "KonstantinB_1983 won on time"]

1. d4 {[%clk 0:03:00.9]} 1... d6 {[%clk 0:02:57.5]} 2. e4 {[%clk 0:02:59.9]}
2... e5 {[%clk 0:02:56.7]} 3. Nf3 {[%clk 0:02:59.2]} 3... Nc6 {[%clk 0:02:48.5]}
4. Bb5 {[%clk 0:02:56.3]} 4... exd4 {[%clk 0:02:47]} 5. Nxd4 {[%clk 0:02:53.3]}
5... Bd7 {[%clk 0:02:46.7]} 6. Bc4 {[%clk 0:02:50.2]} 6... Nf6 {[%clk
0:02:42.2]} 7. Nc3 {[%clk 0:02:48.9]} 7... Be7 {[%clk 0:02:41.7]} 8. O-O {[%clk
0:02:47.8]} 8... O-O {[%clk 0:02:41.3]} 9. h3 {[%clk 0:02:44.5]} 9... Nxd4
{[%clk 0:02:40]} 10. Qxd4 {[%clk 0:02:43.4]} 10... Bc6 {[%clk 0:02:40.4]} 11.
Re1 {[%clk 0:02:39]} 11... Nd7 {[%clk 0:02:39.8]} 12. Be3 {[%clk 0:02:34.2]}
12... Bf6 {[%clk 0:02:38.2]} 13. Qd2 {[%clk 0:02:33]} 13... Re8 {[%clk 0:02:30]}
14. f3 {[%clk 0:02:28.2]} 14... a6 {[%clk 0:02:04.3]} 15. Rab1 {[%clk
0:02:24.4]} 15... b5 {[%clk 0:02:00.3]} 16. Bf1 {[%clk 0:02:23.8]} 16... Ne5
{[%clk 0:01:49.7]} 17. b3 {[%clk 0:02:16.4]} 17... Qb8 {[%clk 0:01:40.3]} 18.
Nd5 {[%clk 0:02:15.1]} 18... Bxd5 {[%clk 0:01:39.4]} 19. Qxd5 {[%clk 0:02:11.3]}
19... Qc8 {[%clk 0:01:14.9]} 20. c4 {[%clk 0:02:09.3]} 20... bxc4 {[%clk
0:01:11.1]} 21. bxc4 {[%clk 0:02:08.3]} 21... Rb8 {[%clk 0:01:01.4]} 22. c5
{[%clk 0:02:04.7]} 22... dxc5 {[%clk 0:00:54.5]} 23. Qxc5 {[%clk 0:02:03.7]}
23... Qe6 {[%clk 0:00:47.7]} 24. Qc2 {[%clk 0:01:53]} 24... a5 {[%clk
0:00:39.5]} 25. f4 {[%clk 0:01:52]} 25... Nd7 {[%clk 0:00:25.9]} 26. e5 {[%clk
0:01:46.2]} 26... Be7 {[%clk 0:00:24.8]} 27. Bc4 {[%clk 0:01:41.1]} 27... Qg6
{[%clk 0:00:18.5]} 28. Bd3 {[%clk 0:01:40]} 28... Qh5 {[%clk 0:00:16]} 29. Qxc7
{[%clk 0:01:31]} 29... Rxb1 {[%clk 0:00:13.4]} 30. Rxb1 {[%clk 0:01:29.7]} 30...
Bf8 {[%clk 0:00:13.1]} 31. Qxd7 {[%clk 0:01:26.5]} 1-0

[Event "*** Titled Tuesday Blitz"]
[Site "Chess.com"]
[Date "2021.02.16"]
[Round "11"]
[White "VladimirBugayev"]
[Black "Fiona"]
[Result "1-0"]
[WhiteElo "2294"]
[BlackElo "2131"]
[TimeControl "180+1"]
[EndTime "12:09:01 PST"]
[Termination "VladimirBugayev won by resignation"]

1. e4 {[%clk 0:02:52.5]} 1... e5 {[%clk 0:03:00]} 2. Nf3 {[%clk 0:02:51.8]} 2...
Nc6 {[%clk 0:02:59.6]} 3. d4 {[%clk 0:02:51.6]} 3... exd4 {[%clk 0:02:59.3]} 4.
Nxd4 {[%clk 0:02:51.6]} 4... Bc5 {[%clk 0:02:59.8]} 5. Nb3 {[%clk 0:02:51.3]}
5... Bb6 {[%clk 0:02:59]} 6. Nc3 {[%clk 0:02:51.9]} 6... a5 {[%clk 0:02:51]} 7.
a4 {[%clk 0:02:47.4]} 7... Nge7 {[%clk 0:02:47.7]} 8. Qe2 {[%clk 0:02:47.1]}
8... d6 {[%clk 0:02:41.8]} 9. Be3 {[%clk 0:02:45.8]} 9... Bxe3 {[%clk
0:02:40.3]} 10. Qxe3 {[%clk 0:02:45.2]} 10... Be6 {[%clk 0:02:40.7]} 11. O-O-O
{[%clk 0:02:44.5]} 11... O-O {[%clk 0:02:22.5]} 12. f4 {[%clk 0:02:36.4]} 12...
Bxb3 {[%clk 0:02:14.1]} 13. cxb3 {[%clk 0:02:34.3]} 13... Nb4 {[%clk 0:02:13.9]}
14. Bc4 {[%clk 0:02:12.7]} 14... c6 {[%clk 0:01:58.4]} 15. Kb1 {[%clk
0:02:04.2]} 15... Qc7 {[%clk 0:01:46.8]} 16. f5 {[%clk 0:01:55.6]} 16... Rad8
{[%clk 0:01:35.7]} 17. f6 {[%clk 0:01:54.8]} 17... gxf6 {[%clk 0:01:25]} 18.
Qg3+ {[%clk 0:01:50.4]} 18... Kh8 {[%clk 0:01:15.7]} 19. Rhf1 {[%clk 0:01:35.6]}
19... Ng6 {[%clk 0:01:01.1]} 20. Rxf6 {[%clk 0:01:31.3]} 20... Ne5 {[%clk
0:01:01.3]} 21. Rfxd6 {[%clk 0:01:08.5]} 21... Rxd6 {[%clk 0:00:56.8]} 22. Qxe5+
{[%clk 0:01:07.8]} 22... f6 {[%clk 0:00:57.4]} 23. Qxd6 {[%clk 0:01:07.6]} 23...
Qg7 {[%clk 0:00:52]} 24. g3 {[%clk 0:00:52.4]} 24... Re8 {[%clk 0:00:51.1]} 25.
Qd7 {[%clk 0:00:45.1]} 25... Qe7 {[%clk 0:00:44.7]} 26. Qxe7 {[%clk 0:00:43.9]}
26... Rxe7 {[%clk 0:00:45.6]} 27. Rd8+ {[%clk 0:00:40.5]} 27... Kg7 {[%clk
0:00:45.7]} 28. Kc1 {[%clk 0:00:37.3]} 1-0

[Event "*** Titled Tuesday Blitz"]
[Site "Chess.com"]
[Date "2021.02.16"]
[Round "11"]
[White "KubaGepard"]
[Black "OriTaichman"]
[Result "1-0"]
[WhiteElo "2428"]
[BlackElo "2529"]
[TimeControl "180+1"]
[EndTime "12:09:08 PST"]
[Termination "KubaGepard won by checkmate"]

1. d4 {[%clk 0:03:00.9]} 1... Nf6 {[%clk 0:02:59.3]} 2. Nf3 {[%clk 0:03:01.8]}
2... g6 {[%clk 0:02:59.4]} 3. g3 {[%clk 0:03:02.3]} 3... Bg7 {[%clk 0:02:59.8]}
4. Bg2 {[%clk 0:03:03.2]} 4... O-O {[%clk 0:03:00.5]} 5. O-O {[%clk 0:03:03.5]}
5... d6 {[%clk 0:03:01]} 6. b3 {[%clk 0:03:03.4]} 6... e5 {[%clk 0:02:59.5]} 7.
dxe5 {[%clk 0:03:02.7]} 7... Nfd7 {[%clk 0:02:59.1]} 8. Bb2 {[%clk 0:02:59.9]}
8... Nxe5 {[%clk 0:02:45.8]} 9. Nxe5 {[%clk 0:02:58.9]} 9... dxe5 {[%clk
0:02:46.7]} 10. c4 {[%clk 0:02:56.2]} 10... Nc6 {[%clk 0:02:41.1]} 11. Nc3
{[%clk 0:02:53]} 11... f5 {[%clk 0:02:26.8]} 12. Bd5+ {[%clk 0:02:48.1]} 12...
Kh8 {[%clk 0:02:25.8]} 13. e4 {[%clk 0:02:42.4]} 13... Nd4 {[%clk 0:02:13.4]}
14. exf5 {[%clk 0:02:38.3]} 14... gxf5 {[%clk 0:02:12.4]} 15. Ne2 {[%clk
0:02:30.6]} 15... c6 {[%clk 0:01:43.9]} 16. Bg2 {[%clk 0:02:30.3]} 16... c5
{[%clk 0:01:42.5]} 17. Nc3 {[%clk 0:02:27.6]} 17... f4 {[%clk 0:01:32.8]} 18.
Be4 {[%clk 0:02:10]} 18... f3 {[%clk 0:01:00.9]} 19. Nd5 {[%clk 0:02:04.3]}
19... Bh3 {[%clk 0:00:46.3]} 20. Re1 {[%clk 0:02:03.6]} 20... Qg5 {[%clk
0:00:27.3]} 21. Bxd4 {[%clk 0:01:51.4]} 21... cxd4 {[%clk 0:00:25.4]} 22. Bxf3
{[%clk 0:01:46.4]} 22... Qf5 {[%clk 0:00:19.8]} 23. Be4 {[%clk 0:01:29.8]} 23...
Qxf2+ {[%clk 0:00:20.7]} 24. Kh1 {[%clk 0:01:30.1]} 24... Rad8 {[%clk
0:00:16.1]} 25. Qh5 {[%clk 0:01:28.3]} 25... Bf5 {[%clk 0:00:12.5]} 26. Bg2
{[%clk 0:01:25.5]} 26... d3 {[%clk 0:00:11.3]} 27. Rf1 {[%clk 0:01:25.1]} 27...
Bg6 {[%clk 0:00:10.4]} 28. Qh4 {[%clk 0:01:18.7]} 28... Qe2 {[%clk 0:00:07.6]}
29. Ne7 {[%clk 0:01:18.3]} 29... Rxf1+ {[%clk 0:00:05.5]} 30. Rxf1 {[%clk
0:01:17.5]} 30... Be4 {[%clk 0:00:04.1]} 31. Ng6+ {[%clk 0:01:16.5]} 31... Bxg6
{[%clk 0:00:03.5]} 32. Qxd8+ {[%clk 0:01:16.5]} 32... Bf8 {[%clk 0:00:04.1]} 33.
Qxf8# {[%clk 0:01:16.4]} 1-0

[Event "*** Titled Tuesday Blitz"]
[Site "Chess.com"]
[Date "2021.02.16"]
[Round "11"]
[White "Pogosian_Manvel"]
[Black "vladimirdamjanovic"]
[Result "1-0"]
[WhiteElo "2430"]
[BlackElo "2530"]
[TimeControl "180+1"]
[EndTime "12:09:11 PST"]
[Termination "Pogosian_Manvel won on time"]

1. d4 {[%clk 0:03:00.6]} 1... Nc6 {[%clk 0:02:58.6]} 2. Nf3 {[%clk 0:02:57.3]}
2... Nf6 {[%clk 0:02:58.2]} 3. c4 {[%clk 0:02:54.3]} 3... g6 {[%clk 0:02:58.3]}
4. Nc3 {[%clk 0:02:54.1]} 4... Bg7 {[%clk 0:02:58.8]} 5. d5 {[%clk 0:02:54.6]}
5... Nb8 {[%clk 0:02:58.5]} 6. e4 {[%clk 0:02:54.4]} 6... d6 {[%clk 0:02:59.4]}
7. Be2 {[%clk 0:02:54.2]} 7... O-O {[%clk 0:03:00]} 8. O-O {[%clk 0:02:54.6]}
8... a5 {[%clk 0:03:00.4]} 9. Ne1 {[%clk 0:02:43.6]} 9... Na6 {[%clk 0:02:59.5]}
10. Nd3 {[%clk 0:02:43.3]} 10... Nd7 {[%clk 0:02:58.7]} 11. Be3 {[%clk
0:02:39.9]} 11... Ndc5 {[%clk 0:02:55.7]} 12. f4 {[%clk 0:02:37.4]} 12... Nxd3
{[%clk 0:02:42.2]} 13. Bxd3 {[%clk 0:02:36.8]} 13... Nc5 {[%clk 0:02:43]} 14.
Bxc5 {[%clk 0:02:31.1]} 14... dxc5 {[%clk 0:02:43.9]} 15. e5 {[%clk 0:02:30.3]}
15... c6 {[%clk 0:02:35.5]} 16. Qe2 {[%clk 0:02:24.7]} 16... Qc7 {[%clk
0:02:14.2]} 17. Rad1 {[%clk 0:02:16.6]} 17... Rd8 {[%clk 0:02:04.5]} 18. Rfe1
{[%clk 0:02:06.5]} 18... f6 {[%clk 0:01:15.3]} 19. e6 {[%clk 0:01:56]} 19... f5
{[%clk 0:01:13.5]} 20. Rf1 {[%clk 0:01:48.2]} 20... Bd4+ {[%clk 0:01:11.3]} 21.
Kh1 {[%clk 0:01:47.9]} 21... a4 {[%clk 0:01:07.7]} 22. g4 {[%clk 0:01:47.2]}
22... cxd5 {[%clk 0:00:37.8]} 23. Nxd5 {[%clk 0:01:42.7]} 23... Qc6 {[%clk
0:00:36.3]} 24. gxf5 {[%clk 0:01:42.5]} 24... gxf5 {[%clk 0:00:29.5]} 25. Bxf5
{[%clk 0:01:23]} 25... Rxd5 {[%clk 0:00:28.8]} 26. Qg2+ {[%clk 0:01:18]} 26...
Kh8 {[%clk 0:00:29.1]} 27. cxd5 {[%clk 0:01:17.6]} 27... Qe8 {[%clk 0:00:28]}
28. Qh3 {[%clk 0:01:13.4]} 28... h5 {[%clk 0:00:26.2]} 29. Rg1 {[%clk
0:01:11.3]} 29... b6 {[%clk 0:00:01]} 30. Rg6 {[%clk 0:01:10.2]} 1-0

[Event "*** Titled Tuesday Blitz"]
[Site "Chess.com"]
[Date "2021.02.16"]
[Round "11"]
[White "DonPreuss"]
[Black "Maddie"]
[Result "1-0"]
[WhiteElo "2241"]
[BlackElo "2044"]
[TimeControl "180+1"]
[EndTime "12:09:17 PST"]
[Termination "DonPreuss won by checkmate"]

1. d4 {[%clk 0:03:00.9]} 1... d5 {[%clk 0:02:56.3]} 2. e4 {[%clk 0:03:00.5]}
2... dxe4 {[%clk 0:02:56.2]} 3. Nc3 {[%clk 0:03:00.7]} 3... Nf6 {[%clk
0:02:56.5]} 4. f3 {[%clk 0:03:01.1]} 4... exf3 {[%clk 0:02:56.4]} 5. Nxf3 {[%clk
0:03:01.4]} 5... Bg4 {[%clk 0:02:56.9]} 6. h3 {[%clk 0:03:00.9]} 6... Bh5 {[%clk
0:02:56.4]} 7. g4 {[%clk 0:03:00.4]} 7... Bg6 {[%clk 0:02:56]} 8. Ne5 {[%clk
0:03:00.9]} 8... c6 {[%clk 0:02:54.4]} 9. g5 {[%clk 0:03:00.2]} 9... Nd5 {[%clk
0:02:54.1]} 10. Qf3 {[%clk 0:02:59.2]} 10... Nxc3 {[%clk 0:02:51.5]} 11. bxc3
{[%clk 0:02:45.3]} 11... e6 {[%clk 0:02:48.8]} 12. Bd3 {[%clk 0:02:44.4]} 12...
Qc7 {[%clk 0:02:38]} 13. Rf1 {[%clk 0:02:42.6]} 13... Bd6 {[%clk 0:02:27.8]} 14.
Bxg6 {[%clk 0:02:40.8]} 14... hxg6 {[%clk 0:02:07.9]} 15. Nxf7 {[%clk
0:02:40.3]} 15... Bg3+ {[%clk 0:01:50.5]} 16. Ke2 {[%clk 0:02:27.4]} 16... Rf8
{[%clk 0:01:47.5]} 17. Qe4 {[%clk 0:01:54.9]} 17... Rxf7 {[%clk 0:01:41.7]} 18.
Qxg6 {[%clk 0:01:54.6]} 18... Kf8 {[%clk 0:01:11.7]} 19. Qh7 {[%clk 0:01:21.3]}
19... Rxf1 {[%clk 0:01:04.3]} 20. Ba3+ {[%clk 0:01:21]} 20... Ke8 {[%clk
0:00:44.1]} 21. Rxf1 {[%clk 0:01:06.5]} 21... Bf4 {[%clk 0:00:33.2]} 22. Qg8+
{[%clk 0:00:55]} 22... Kd7 {[%clk 0:00:30.1]} 23. Qxg7+ {[%clk 0:00:42.7]} 23...
Kd8 {[%clk 0:00:20.4]} 24. Qf8+ {[%clk 0:00:35.3]} 24... Kd7 {[%clk 0:00:20.7]}
25. Rxf4 {[%clk 0:00:34.9]} 25... Na6 {[%clk 0:00:19.3]} 26. Rf7# {[%clk
0:00:34.7]} 1-0

[Event "*** Titled Tuesday Blitz"]
[Site "Chess.com"]
[Date "2021.02.16"]
[Round "11"]
[White "dodorox"]
[Black "MF1966Idrisov"]
[Result "0-1"]
[WhiteElo "2197"]
[BlackElo "2358"]
[TimeControl "180+1"]
[EndTime "12:09:22 PST"]
[Termination "MF1966Idrisov won by resignation"]

1. d4 {[%clk 0:03:00.9]} 1... d6 {[%clk 0:02:59.9]} 2. c4 {[%clk 0:03:00.9]}
2... f5 {[%clk 0:03:00.4]} 3. Nc3 {[%clk 0:02:59.5]} 3... Nf6 {[%clk 0:03:00.8]}
4. g3 {[%clk 0:02:59.4]} 4... e6 {[%clk 0:03:00.7]} 5. Bg2 {[%clk 0:02:59.3]}
5... Be7 {[%clk 0:03:00.9]} 6. Nf3 {[%clk 0:02:53.1]} 6... O-O {[%clk
0:03:00.5]} 7. O-O {[%clk 0:02:53.5]} 7... Ne4 {[%clk 0:03:00.6]} 8. Qc2 {[%clk
0:02:50.7]} 8... Nxc3 {[%clk 0:02:59.9]} 9. Qxc3 {[%clk 0:02:49.6]} 9... Bf6
{[%clk 0:03:00.4]} 10. Qc2 {[%clk 0:02:35.3]} 10... e5 {[%clk 0:02:58.8]} 11. e3
{[%clk 0:02:25.5]} 11... Nc6 {[%clk 0:02:56.6]} 12. d5 {[%clk 0:02:17.2]} 12...
Nb8 {[%clk 0:02:45.8]} 13. Nd2 {[%clk 0:02:11.4]} 13... b6 {[%clk 0:02:42.9]}
14. e4 {[%clk 0:02:07.8]} 14... f4 {[%clk 0:02:38.4]} 15. h3 {[%clk 0:01:39.2]}
15... fxg3 {[%clk 0:02:31.5]} 16. fxg3 {[%clk 0:01:38.8]} 16... a5 {[%clk
0:02:21.4]} 17. Nf3 {[%clk 0:01:38]} 17... Na6 {[%clk 0:02:14]} 18. Be3 {[%clk
0:01:31]} 18... Nc5 {[%clk 0:02:13.3]} 19. Rf2 {[%clk 0:01:26.3]} 19... Bd7
{[%clk 0:02:04.6]} 20. Raf1 {[%clk 0:01:25]} 20... Qe7 {[%clk 0:02:04.4]} 21.
Kh2 {[%clk 0:01:24.5]} 21... h6 {[%clk 0:01:55.5]} 22. Nd2 {[%clk 0:01:21.3]}
22... Bg5 {[%clk 0:01:49.5]} 23. Bxg5 {[%clk 0:01:16.5]} 23... Qxg5 {[%clk
0:01:48.2]} 24. Nf3 {[%clk 0:01:04.5]} 24... Qe3 {[%clk 0:01:29.7]} 25. Re2
{[%clk 0:01:01.5]} 25... Qd3 {[%clk 0:01:29.6]} 26. Qxd3 {[%clk 0:00:58.3]}
26... Nxd3 {[%clk 0:01:29.3]} 27. Ne1 {[%clk 0:00:41.8]} 27... Rxf1 {[%clk
0:01:24.5]} 28. Bxf1 {[%clk 0:00:40.9]} 28... Nc1 {[%clk 0:01:24.6]} 29. Rc2
{[%clk 0:00:16]} 29... Nxa2 {[%clk 0:01:23.8]} 30. Nd3 {[%clk 0:00:16.6]} 30...
Nb4 {[%clk 0:01:16.7]} 31. Nxb4 {[%clk 0:00:15.5]} 31... axb4 {[%clk 0:01:16.9]}
32. Kg2 {[%clk 0:00:14.6]} 32... Ra1 {[%clk 0:01:15]} 33. Kf2 {[%clk 0:00:14.3]}
33... Ba4 {[%clk 0:01:11.2]} 34. Rd2 {[%clk 0:00:13.3]} 34... Bb3 {[%clk
0:01:10.5]} 35. Ke3 {[%clk 0:00:05.8]} 35... Rxf1 {[%clk 0:01:08.8]} 0-1